{"text_format":"3","workbook":"xlsx","n_sheets":1,"sheets":["Arkusz1"],"read":"whole","date_system":"1900"}

{"sheet":"Arkusz1","index":0,"n_rows":18,"n_cols":8,"rows_kept":18,"merged":[[0,1,0,7]]}
[null,"Formularz do Regulaminu  Szermierka w ramach Pięcioboju Nowoczesnego"]
[null,"część podstawowa"]
["L.P","NAZWA PRZEDMIOTU","OPZ  (wymagania /szczegóły)","j.m","ILOŚĆ","CENA jednostkowa NETTO (PLN)","WARTOŚĆ NETTO (PLN)","WARTOŚĆ BRUTTO"]
[1,"Plansze metalowe","Plansze do szermierki o wymiarach: szerokość 150 cm, długość planszy 17 m, atest  FIE","szt.",{"v":10,"d":"10.00"},{"v":0,"d":"0.00"},{"$f":"E4*F4","v":{"v":0,"d":"0.00"}},{"$f":"G4*1.23","v":{"v":0,"d":"0 zł"}}]
[2,"Plansza metalowa\nfinałowa","Plansza do szermierki o wymiarach: szerokość 200 cm, długość planszy 18 m, atest FIE","szt.",{"v":1,"d":"1.00"},{"v":0,"d":"0.00"},{"v":0,"d":"0.00"},{"v":0,"d":"0 zł"}]
[3,"Stoliki pod aparaty szermiercze    płachtami ochronnymi z logo EG2023 oraz oznaczenie literowe planszy ( do A do J).","Specjalistyczne stoliki szermiercze, przystosowane do aparatów Favero, pozwalające na niewidocznie  zamontowanie okablowanie.   Płachty ochronne, szyte na miarę z materiału odpornego na uderzenia i na rozerwanie. 2 sztuki tylko z LOGO  - na planszę BR oraz 1 rezerwa. \n Projekt: kolor,  loga i oznaczenia zostanie ustalony z Brandingiem ","szt.",{"v":12,"d":"12.00"},{"v":0,"d":"0.00"},{"v":0,"d":"0.00"},{"v":0,"d":"0 zł"}]
[4,"Komplet sędziowski  do sędziowania walk szermierczych","Komplet musi składać się z ciężarka do szpady (750 gr) , szczelinomierza, karty o kolorze żółtym, czerwonym, czarnym. Całość musi posiadać  atest FIE","szt.",{"v":12,"d":"12.00"},{"v":0,"d":"0.00"},{"v":0,"d":"0.00"},{"v":0,"d":"0 zł"}]
[5,"Numery startowe dla zawodników (plecy). \nDo przypięcia lub przyklejenia\nWielkość : 16cm x12cm","Komplet numerów startowych do szermierki (plecy)\n Kwalifikacje: 6 kompletów  od 1 do 36   (216 szt)\n Półfinały:      4 komplety      od 1 do 18   (  72 szt)\n Finały:            2 komplety       od 1 d 18   (  36 szt)\n\nSztafety mieszane : 21 kompletów od 1 do 21 po 2 numery : nrA, nrB    (42 szt)\nRazem : 366 numerów \nNumery wykonane z wytrzymałego materiału do przypięcia z numeracją z 4 agrafkami. \nProjekt numeru startowy będzie przesłany do 30.04  od zamawiającego. Przed wydrukiem , wykonawca prześle projekt wykonania do zamawiającego celem akceptacji","szt.",{"v":366,"d":"366.00"},{"v":0,"d":"0.00"},{"v":0,"d":"0.00"},{"v":0,"d":"0 zł"}]
[6,"Numery startowe dla zawodników\n (maska z 2 stron)\nDo przyklejenia \nWielkość : 8 cm x 6 cm","Komplet numerów startowych do szermierki ( na maskę – po 2-stronach)\n Kwalifikacje: 6 kompletów x2   od 1 do 36   (432 szt)\n Półfinały:      4 komplety x2     od 1 do 18   (  144 szt)\n Finały:            2 komplety x2      od 1 d 18   (  72 szt)\n\nSztafety mieszane : 21 kompletów od 1 do 21 po 4 numery numery : nrA, nrB    (84 szt)\nRazem : 366 numerów \nNumery wykonane z wytrzymałego materiału do przypięcia z numeracją z 4 agrafkami jako zabezpieczenie \nProjekt numeru startowy będzie przesłany do 30.04  od zamawiającego. Przed wydrukiem , wykonawca prześle projekt wykonania do zamawiającego celem akceptacji","szt.",{"v":732,"d":"732.00"},{"v":0,"d":"0.00"},{"v":0,"d":"0.00"},{"v":0,"d":"0 zł"}]
[7,"Stół do kontroli sprzętu szermierczego  (Atest FIE)","Specjalistyczny stół do kontroli broni (atest FIE) oraz oznaczniki skontrolowanego sprzętu (nalepki, pieczątki) ","szt.",{"v":1,"d":"1.00"},{"v":0,"d":"0.00"},{"v":0,"d":"0.00"},{"v":0,"d":"0 zł"}]
[8,"Montaż , demontaż, serwis, obsługa,transport, obecność minimum  2 osób na czas przygotowania, rozgrywnaia konkurencji i demontaży.","Obejmuje przygotowanie obiektu do rozegrania konkurencji szermierki w ramach Pięcioboju Nowoczesnego zgodnie z zaleceniami organizatora na terenie AWF Kraków  wyłączeniem elementów zależnych od ATOS i produkcji TV zgodnie z przepisami Międzynarodowej  Federacji Pięcioboju Nowoczesnego, wytycznymi Delegata Technicznego oraz Menagera Sportu; \n-  transport,  montaż i demontaż elementów na FOP wyszczególnionych w    tabeli 1 \n-  oznaczeń plansz\n-   codzienne mycie plansz po zakończeniu zawodów\n- z przygotowanie i przeprowadzenie kontroli broni\n-  serwis techniczny dostępny cały czas, utrzymanie w czystości plansz (codzienne mycie plansz środkiem specjalistycznym do powierzchni aluminiowej)\n-  ścisłej współpracy z osobami odpowiedzialnymi za montaż i serwis aparatów szermierczych (ATOS)  w czasie Igrzysk Europejskich zgodnie z ustalonymi datami i czasem\n- obecnośc   minimum 2 osób dostępnych przez cały czas trwania użytkowania sprzętu (trening i zawody)   godzinę przed i po zawodach i w trakcie treningów.","kpl.",{"v":1,"d":"1.00"},{"v":0,"d":"0.00"},{"v":0,"d":"0.00"},{"v":0,"d":"0 zł"}]
[null,"PODSUMOWANIE",{"$nulls":3},{"$f":"SUM(F4:F11)","v":{"v":0,"d":"0.00"}},{"$f":"SUM(G4:G11)","v":{"v":0,"d":"0.00"}},{"$f":"SUM(H4:H11)","v":{"v":0,"d":"0 zł"}}]
[null,"zakres opcjonalny:"]
[1,"Aparaty Szermiercze do Rundy Ranking Round \n(hala HGS)","Aparaty szermiercze: wyświetlacze diodowe na wysięgnikach , z pilotem, wyświetlające wynik i czas. Sekundowe ustawienie  czasu walki.  Atest  FIE  (2 rezerwowe)\nFirma : Favero","szt.",{"v":12,"d":"12.00"},{"v":0,"d":"0.00"},{"$f":"F14*E14","v":{"v":0,"d":"0.00"}},{"$f":"G14*1.23","v":{"v":0,"d":"0 zł"}}]
[2,"Bębny szermiercze ","Bębny szermiercze o wymiarach: wysokość do 7 cm, nieprzesuwające się, posiadające atest FIE\n(8 rezerwowych)   Firma : Favero","szt.",{"v":48,"d":"48.00"},{"v":0,"d":"0.00"},{"$f":"F15*E15","v":{"v":0,"d":"0.00"}},{"$f":"G15*1.23","v":{"v":0,"d":"0 zł"}}]
[3,"Przewody łączące aparaty szermiercze z bębnami szermierczymi (wędki)","Kolor czarny długość 17 m, posiadające atest FIE\n(8 rezerwowych)","szt.",{"v":48,"d":"48.00"},{"v":0,"d":"0.00"},{"$f":"F16*E16","v":{"v":0,"d":"0.00"}},{"$f":"G16*1.23","v":{"v":0,"d":"0 zł"}}]
[null,"SUMA"," ",null,null,{"$f":"SUM(F14:F16)","v":{"v":0,"d":"0.00"}},{"$f":"SUM(G14:G16)","v":{"v":0,"d":"0.00"}},{"$f":"SUM(H14:H16)","v":{"v":0,"d":"0 zł"}}]
[null,"PODSUMOWANIE","ZAKRES PODSTAWOWY+ZAKRES OPCJONALNY"]